Cogmind - Beta 11.1 @@@ ROGUE MODE // 2022.04.27 @ 18:22:50 Player: Olga Result: Destroyed by Y-64 Sentinel with KE Penetrator Performance ------------- Evolutions (6) 3000 Regions Visited (11) 2200 Robots Destroyed (40) 200 Value Destroyed (1902) 1902 Prototype IDs (25) 500 Alien Tech Used (0) 0 Bonus (1120) 1120 TOTAL SCORE: 8922 Bonus ------- Pacifist 270 High Alert Combat Kills 50 Entered DSFs 500 Aligned with FarCom 300 Cogmind --------- Core Integrity 0/1150 Matter 69/300 Energy 100/100 System Corruption 0% Temperature Cool (18) Movement Core (50) Location -4/Extension Parts ------- > --- POWER (1) -------- (None) > --- PROPULSION (6) --- (None) > --- UTILITY (8) ------ Advanced Signal Interpreter Core Analyzer > --- WEAPON (4) ------- (None) > --- INVENTORY (5) ---- Light Nuclear Core Light Nuclear Core Improved Signal Interpreter Peak State ------------ > --- POWER ------------ Fission Core > --- PROPULSION ------- Carbon-fiber Leg Wheel Linear Gravjet > --- UTILITY ---------- Advanced Heat Sink Medium Storage Unit Medium Storage Unit Small Battery Advanced Signal Interpreter Core Analyzer Recoil Nullifier Improved Light Armor Plating > --- WEAPON ----------- Thermic Laser Gauss Rifle > --- INVENTORY -------- Light Nuclear Core Light Nuclear Core Improved Signal Interpreter [Rating: 50] Favorites ----------- Power Ion Engine Engine Ion Engine Power Core Light Nuclear Core Propulsion Potential Leg Treads Light Treads Leg Potential Leg Wheel Armored Wheel Hover Unit Linear Gravjet Flight Unit VTOL Module Utility Advanced Visual Processing Unit Device Improved Heat Sink Storage High-capacity Storage Unit Processor Advanced Visual Processing Unit Protection Light Armor Plating Weapon Heavy Missile Launcher Energy Gun Small Laser Ballistic Gun Assault Rifle Ballistic Cannon Gauss Cannon Launcher Heavy Missile Launcher Slashing Weapon Axe Build | -11 -10 -10 -10 -9 -8 -7 -6 -6 -5 -4 -4 ------- Run | Scr Mat Min Exi Min Mat Fac Fac DSF Fac Fac Ext Slots Evolved 12 | . . . . . 4 2 2 . 2 2 . Power . | . . . . . . . . . . . . Propulsion 4 | . . . . . . 2 . . . 2 . Utility 6 | . . . . . 4 . . . 2 . . Weapon 2 | . . . . . . . 2 . . . . Parts Attached 91 | . . . 4 . 30 31 2 2 7 15 . Power 12 | . . . . . 6 3 . . 1 2 . Engine 5 | . . . . . 3 2 . . . . . Core 7 | . . . . . 3 1 . . 1 2 . Reactor . | . . . . . . . . . . . . Propulsion 25 | . . . 2 . 2 11 . . 3 7 . Treads 2 | . . . . . . . . . 2 . . Leg 12 | . . . 2 . 2 7 . . 1 . . Wheel 5 | . . . . . . 4 . . . 1 . Hover 2 | . . . . . . . . . . 2 . Flight 4 | . . . . . . . . . . 4 . Utility 28 | . . . 2 . 9 9 . 1 2 5 . Device 13 | . . . . . 4 5 . 1 1 2 . Storage 6 | . . . 2 . . 2 . . 1 1 . Processor 7 | . . . . . 4 2 . . . 1 . Hackware . | . . . . . . . . . . . . Protection 2 | . . . . . 1 . . . . 1 . Artifact . | . . . . . . . . . . . . Weapon 26 | . . . . . 13 8 2 1 1 1 . Energy Gun 2 | . . . . . 1 . . . . 1 . Energy Cannon . | . . . . . . . . . . . . Ballistic Gun 6 | . . . . . 2 3 . . 1 . . Ballistic Cannon 10 | . . . . . 7 3 . . . . . Launcher 5 | . . . . . . 2 2 1 . . . Special Weapon . | . . . . . . . . . . . . Impact Weapon . | . . . . . . . . . . . . Slashing Weapon 3 | . . . . . 3 . . . . . . Piercing Weapon . | . . . . . . . . . . . . Special Melee Weapon . | . . . . . . . . . . . . Unidentified Prototypes 2 | . . . . . 1 1 . . . . . Parts Lost 49 | . . . . . 16 4 . 11 3 15 . Power 6 | . . . . . 4 . . 1 . 1 . Propulsion 15 | . . . . . 1 2 . 2 2 8 . Utility 14 | . . . . . 6 . . 3 1 4 . Weapon 14 | . . . . . 5 2 . 5 . 2 . Highest Loss Streak 15 | . . . . . 5 2 . 8 2 15 . To Critical Strikes . | . . . . . . . . . . . . Average Slot Usage (%) 79 | . 85 85 86 100 86 88 100 78 39 39 10 Engine 4 | . 14 14 14 14 4 3 6 4 . . . Core 2 | . . . . . 3 1 . . 5 3 . Leg 16 | . 28 28 28 28 17 25 . . 1 3 . Wheel 2 | . . . . . . 1 26 20 . . . Device 9 | . . . . . 13 9 20 20 3 5 . Storage 9 | . 14 14 15 28 15 1 6 6 11 8 . Processor 14 | . . . . . 14 29 13 6 5 7 10 Energy Gun 2 | . 14 14 14 14 . . . . . 1 . Ballistic Gun 5 | . 14 14 14 14 4 6 . . 2 3 . Ballistic Cannon 3 | . . . . . 9 2 . . . . . Launcher 3 | . . . . . . 4 26 18 . . . Naked Turns . | . . . . . . . . . . . . Heaviest Build 60 | 13 13 13 50 50 60 42 56 60 21 44 . Greatest Support 60 | 20 20 20 60 60 60 60 48 48 40 15 3 Greatest Overweight (x) 13 | . . . . . 1 3 1 3 6 13 . Average Overweight (x) . | . . . . . . . 1 . . . . Largest Inventory Capacity 20 | . 8 8 20 20 20 10 10 10 10 10 5 Average Capacity 11 | . 8 8 10 20 19 6 10 10 10 8 5 Most Carried 20 | . 7 7 9 9 20 10 9 9 7 8 3 Average Carried 8 | . 6 7 7 9 14 5 8 8 5 5 3 Final Capacity 20 | 8 8 8 20 20 5 10 10 10 10 5 5 Final Carried 9 | 6 7 7 9 9 4 9 9 8 7 3 3 Class Distribution -------------------- 48% | Mutant 26% | Skirmisher 19% | Scavenger-Mutant 3% | Bomber Dominant Class ---------------- Mutant | -10/Materials Mutant | -10/Mines Mutant | -10/Exiles Mutant | -9/Mines Skirmisher | -8/Materials Scavenger-Mutant | -7/Factory Skirmisher | -6/Factory Bomber | -6/DSF Mutant | -5/Factory Mutant | -4/Factory Mutant | -4/Extension Resources | -11 -10 -10 -10 -9 -8 -7 -6 -6 -5 -4 -4 ----------- Run | Scr Mat Min Exi Min Mat Fac Fac DSF Fac Fac Ext Matter Collected 1549 | 200 . . 70 . 460 539 . 127 126 27 . Remotely 294 | . . . . . 167 . . 127 . . . Salvage Created 1881 | . . . . . 847 633 . 243 86 72 . Parts 75 | . . . . . 39 24 . 3 3 6 . Haulers Intercepted . | . . . . . . . . . . . . Recyclers Shooed . | . . . . . . . . . . . . Parts Field Recycled . | . . . . . . . . . . . . Retrieved Matter . | . . . . . . . . . . . . Parts Self-Destructed . | . . . . . . . . . . . . Prevented . | . . . . . . . . . . . . Kills | -11 -10 -10 -10 -9 -8 -7 -6 -6 -5 -4 -4 ------- Run | Scr Mat Min Exi Min Mat Fac Fac DSF Fac Fac Ext Combat Hostiles Destroyed 40 | . . . . . 20 13 . 2 2 3 . Melee 13 | . . . . . 12 . . . 1 . . Guns 17 | . . . . . 3 10 . . 1 3 . Cannons 8 | . . . . . 5 3 . . . . . AOE 2 | . . . . . . . . 2 . . . Classes Destroyed 8 | . . . . . 6 1 . 1 . . . Swarmer 5 | . . . . . 2 . . . . 3 . Grunt 18 | . . . . . 8 8 . . 2 . . Brawler 2 | . . . . . 1 1 . . . . . Duelist 1 | . . . . . . 1 . . . . . Sentry 6 | . . . . . 4 2 . . . . . Specialist 5 | . . . . . 4 . . 1 . . . Hunter 2 | . . . . . 1 1 . . . . . Heavy 1 | . . . . . . . . 1 . . . Best Kill Streak 8 | . . . . . 8 3 . 2 1 3 . Combat Bots Only 8 | . . . . . 8 3 . 2 1 3 . Max Kills in Single Turn 1 | . . . . . 1 1 . 1 1 1 . Gunslinging . | . . . . . . . . . . . . Exploded 1 | . . . . . . . . 1 . . . Melee 1 | . . . . . 1 . . . 1 . . Uniques/NPCs Destroyed . | . . . . . . . . . . . . Combat | -11 -10 -10 -10 -9 -8 -7 -6 -6 -5 -4 -4 -------- Run | Scr Mat Min Exi Min Mat Fac Fac DSF Fac Fac Ext Damage Taken 7840 | . 67 . . . 2914 867 . 1147 622 1833 390 Core 2248 | . 6 . . . 500 239 . 176 168 769 390 Absorbed by Shields 218 | . . . . . . . . 200 . 18 . Core Remaining (%) 72 | 100 . . . 97 9 65 . 79 83 . . Volleys Fired 107 | . . . . . 41 48 . 4 10 4 . Largest 4 | . . . . . 2 2 . 4 1 2 . Hottest 156 | . . . . . 87 96 . 156 28 113 . Shots Fired 195 | . . . . . 74 88 . 16 10 7 . Gun 101 | . . . . . 22 62 . . 10 7 . Cannon 76 | . . . . . 52 24 . . . . . Launcher 18 | . . . . . . 2 . 16 . . . Special . | . . . . . . . . . . . . Kinetic 170 | . . . . . 71 86 . . 10 3 . Thermal 7 | . . . . . 3 . . . . 4 . Explosive 18 | . . . . . . 2 . 16 . . . Electromagnetic . | . . . . . . . . . . . . Robot Hit Streak 15 | . . . . . 11 15 . 6 4 3 . Robot Miss Streak 5 | . . . . . 4 5 . 1 1 2 . Penetration Max . | . . . . . . . . . . . . Secondary Targets 3 | . . . . . . 1 . . . 2 . Max Gunslinging Chain 1 | . . . . . . 1 . . . 1 . Shots Hit Robots 159 | . . . . . 81 56 . 11 7 4 . Core Hits 95 | . . . . . 37 29 . 21 5 3 . Critical Kills . | . . . . . . . . . . . . Critical Parts Destroyed . | . . . . . . . . . . . . Critical Strikes 4 | . . . . . 3 1 . . . . . Blast 1 | . . . . . . 1 . . . . . Sever 3 | . . . . . 3 . . . . . . Melee Attacks 43 | . . . . . 43 . . . . . . Impact . | . . . . . . . . . . . . Slashing 43 | . . . . . 43 . . . . . . Piercing . | . . . . . . . . . . . . Sneak Attacks . | . . . . . . . . . . . . Combat Hostiles . | . . . . . . . . . . . . Follow-up Attacks 4 | . . . . . 4 . . . . . . Damage Inflicted 4884 | . . . . . 2212 1050 . 1394 152 76 . Guns 1122 | . . . . . 173 744 . . 129 76 . Cannons 1126 | . . . . . 820 306 . . . . . Explosions 1394 | . . . . . . . . 1394 . . . Melee 960 | . . . . . 960 . . . . . . Ramming 282 | . . . . . 259 . . . 23 . . Kinetic 2161 | . . . . . 960 1050 . . 129 22 . Thermal 87 | . . . . . 33 . . . . 54 . Explosive 1394 | . . . . . . . . 1394 . . . Electromagnetic . | . . . . . . . . . . . . Impact . | . . . . . . . . . . . . Slashing 960 | . . . . . 960 . . . . . . Piercing . | . . . . . . . . . . . . Highest Corruption 6 | . . . . . 4 . . 6 . . . Average Corruption 1 | . . . . . 1 . . 3 . . . Corruption Purged . | . . . . . . . . . . . . Corruption Blocked . | . . . . . . . . . . . . Effects 3 | . . . . . 2 . . 1 . . . Message Errors 1 | . . . . . 1 . . . . . . Parts Rejected 1 | . . . . . . . . 1 . . . Data Loss (major) 1 | . . . . . 1 . . . . . . Overload Shots . | . . . . . . . . . . . . Overflow Damage 47 | . . . . . 47 . . . . . . Projectiles . | . . . . . . . . . . . . Explosions . | . . . . . . . . . . . . Melee 47 | . . . . . 47 . . . . . . Knockbacks 15 | . . . . . 11 4 . . . . . Impact . | . . . . . . . . . . . . Kinetic 11 | . . . . . 7 4 . . . . . Secondary 4 | . . . . . 4 . . . . . . Self-Inflicted Damage 39 | . . . . . . 16 . 23 . . . Shots 2 | . . . . . . 1 . 1 . . . Rammed 13 | . . . . . . . . . 13 . . Targets Rammed 47 | . . . . . 33 . . . 14 . . Kicked 33 | . . . . . 33 . . . . . . Crushed 1 | . . . . . . . . . 1 . . Highest Temperature 341 | . . . . . 341 58 . . . 6 . Average Temperature 88 | . . . . . 112 15 . . . 6 . Received Heat Transfer 2621 | . . . . . 1350 372 . 188 315 333 63 Effects 4 | . . . . . 4 . . . . . . Energy Bleed 1 | . . . . . 1 . . . . . . Interference 2 | . . . . . 2 . . . . . . Short Circuit 1 | . . . . . 1 . . . . . . Siege Activations . | . . . . . . . . . . . . Robots Corrupted . | . . . . . . . . . . . . Combat Hostiles . | . . . . . . . . . . . . Parts Fried . | . . . . . . . . . . . . Impact Corruptions 1 | . . . . . 1 . . . . . . Robots Melted . | . . . . . . . . . . . . Combat Hostiles . | . . . . . . . . . . . . Parts Melted . | . . . . . . . . . . . . Heat Transferred 225 | . . . . . 75 . . . . 150 . Parts Sabotaged . | . . . . . . . . . . . . Parts Stolen . | . . . . . . . . . . . . Parts Stripped . | . . . . . . . . . . . . Power Chain Reactions . | . . . . . . . . . . . . Missiles Intercepted . | . . . . . . . . . . . . Alert | -11 -10 -10 -10 -9 -8 -7 -6 -6 -5 -4 -4 ------- Run | Scr Mat Min Exi Min Mat Fac Fac DSF Fac Fac Ext Peak Influence 486 | . . . . . 486 382 115 176 59 56 15 Initial 135 | . . . . . . 135 110 80 44 16 . Average 157 | . . . . . 176 274 110 134 22 14 8 Maximum Alert Level 2 | . . . . . 2 1 . . . . . Low Security (%) 60 | . 100 100 . 100 50 21 100 100 100 100 100 Level 1 37 | . . . . . 43 78 . . . . . Level 2 1 | . . . . . 5 . . . . . . Level 3 . | . . . . . . . . . . . . Level 4 . | . . . . . . . . . . . . Level 5 . | . . . . . . . . . . . . High Security . | . . . . . . . . . . . . Max Security . | . . . . . . . . . . . . Squads Dispatched 15 | . 1 . . . 6 4 1 2 1 . . Investigation 5 | . . . . . 2 1 1 . 1 . . Extermination . | . . . . . . . . . . . . Reinforcement 8 | . 1 . . . 4 1 . 2 . . . Assault . | . . . . . . . . . . . . Garrison 2 | . . . . . . 2 . . . . . Intercept . | . . . . . . . . . . . . Searches Triggered . | . . . . . . . . . . . . Construction Impeded . | . . . . . . . . . . . . Haulers Reinforced . | . . . . . . . . . . . . Active Scanning Responses . | . . . . . . . . . . . . Cargo Convoy Interrupts . | . . . . . . . . . . . . Stealth | -11 -10 -10 -10 -9 -8 -7 -6 -6 -5 -4 -4 --------- Run | Scr Mat Min Exi Min Mat Fac Fac DSF Fac Fac Ext Distress Signals 5 | . . . . . 4 . . . . . 1 Communications Jammed . | . . . . . . . . . . . . Distress Signals . | . . . . . . . . . . . . Times Spotted 104 | . 6 . . . 56 15 . 7 7 10 3 Peak Tracking Total 17 | . 7 . . . 17 3 . 5 5 9 3 Tactical Retreats 8 | . . . . . 7 1 . . . . . Traps | -11 -10 -10 -10 -9 -8 -7 -6 -6 -5 -4 -4 ------- Run | Scr Mat Min Exi Min Mat Fac Fac DSF Fac Fac Ext Traps Triggered 9 | . . . . . 3 . 1 5 . . . Indirectly . | . . . . . . . . . . . . Trap Hack Attempts . | . . . . . . . . . . . . Triggered . | . . . . . . . . . . . . Disarmed . | . . . . . . . . . . . . Reprogrammed . | . . . . . . . . . . . . Reused . | . . . . . . . . . . . . Traps Extracted . | . . . . . . . . . . . . Installed . | . . . . . . . . . . . . Triggered . | . . . . . . . . . . . . Machines | -11 -10 -10 -10 -9 -8 -7 -6 -6 -5 -4 -4 ---------- Run | Scr Mat Min Exi Min Mat Fac Fac DSF Fac Fac Ext Machines Disabled 4 | . . . . . 2 2 . . . . . Max in Single Turn 1 | . . . . . 1 1 . . . . . Garrison Access 2 | . . . . . 1 1 . . . . . Machines Sabotaged . | . . . . . . . . . . . . Garrisons Compromised . | . . . . . . . . . . . . Overloaded Fab Kills . | . . . . . . . . . . . . Hacking | -11 -10 -10 -10 -9 -8 -7 -6 -6 -5 -4 -4 --------- Run | Scr Mat Min Exi Min Mat Fac Fac DSF Fac Fac Ext Machines Accessed 16 | . . . 1 . 7 5 2 . 1 . . Terminals 13 | . . . . . 6 4 2 . 1 . . Fabricators . | . . . . . . . . . . . . Repair Stations . | . . . . . . . . . . . . Recycling Units . | . . . . . . . . . . . . Scanalyzers . | . . . . . . . . . . . . Garrison Access 2 | . . . . . 1 1 . . . . . Total Hacks 37 | . . . 1 . 16 11 5 . 4 . . Successful 13 | . . . 1 . 6 3 1 . 2 . . Failed 24 | . . . . . 10 8 4 . 2 . . Catastrophic 4 | . . . . . . 3 1 . . . . Database Lockouts . | . . . . . . . . . . . . Manual 16 | . . . 1 . 6 7 . . 2 . . Terminals 31 | . . . . . 14 8 5 . 4 . . Fabricators . | . . . . . . . . . . . . Repair Stations . | . . . . . . . . . . . . Recycling Units . | . . . . . . . . . . . . Scanalyzers . | . . . . . . . . . . . . Garrison Access 5 | . . . . . 2 3 . . . . . Terminal Hacks 9 | . . . 1 . 4 1 1 . 2 . . Open DSF 1 | . . . . . . . 1 . . . . Level Access Points 1 | . . . . . 1 . . . . . . Branch Access Points 1 | . . . . . 1 . . . . . . Alert Level 2 | . . . . . . 1 . . 1 . . Unreport Threat 2 | . . . . . 1 . . . 1 . . Zone Layout 1 | . . . . . 1 . . . . . . EX-Prototype ID Bank 1 | . . . 1 . . . . . . . . Fabricator Hacks . | . . . . . . . . . . . . Repair Station Hacks . | . . . . . . . . . . . . Recycling Unit Hacks . | . . . . . . . . . . . . Scanalyzer . | . . . . . . . . . . . . Garrison Access Hacks 2 | . . . . . 1 1 . . . . . Seal Access 2 | . . . . . 1 1 . . . . . Unauthorized Hacks 2 | . . . . . 1 1 . . . . . Terminals 2 | . . . . . 1 1 . . . . . Sabotage 2 | . . . . . 1 1 . . . . . Fabricators . | . . . . . . . . . . . . Repair Stations . | . . . . . . . . . . . . Recycling Units . | . . . . . . . . . . . . Scanalyzers . | . . . . . . . . . . . . Garrison Access . | . . . . . . . . . . . . Data Cores Recovered . | . . . . . . . . . . . . Used . | . . . . . . . . . . . . Hacking Detections 12 | . . . . . 5 5 1 . 1 . . Full Trace Events 3 | . . . . . 1 . 1 . 1 . . Feedback Events . | . . . . . . . . . . . . Feedback Blocked . | . . . . . . . . . . . . Robot Schematics Acquired . | . . . . . . . . . . . . Robots Built . | . . . . . . . . . . . . Authchips . | . . . . . . . . . . . . Time . | . . . . . . . . . . . . Total Robot Build Rating . | . . . . . . . . . . . . Part Schematics Acquired . | . . . . . . . . . . . . Parts Built . | . . . . . . . . . . . . Authchips . | . . . . . . . . . . . . Time . | . . . . . . . . . . . . Total Part Build Rating . | . . . . . . . . . . . . Parts Repaired . | . . . . . . . . . . . . Time . | . . . . . . . . . . . . Parts Recycled . | . . . . . . . . . . . . Recycled Matter . | . . . . . . . . . . . . Retrieved Matter . | . . . . . . . . . . . . Retrieved Components . | . . . . . . . . . . . . Parts Scanalyzed . | . . . . . . . . . . . . Part Schematics Acquired . | . . . . . . . . . . . . Parts Damaged . | . . . . . . . . . . . . Bothacking | -11 -10 -10 -10 -9 -8 -7 -6 -6 -5 -4 -4 ------------ Run | Scr Mat Min Exi Min Mat Fac Fac DSF Fac Fac Ext Used RIF Installer . | . . . . . . . . . . . . Robots Hacked . | . . . . . . . . . . . . Non-combat . | . . . . . . . . . . . . Combat . | . . . . . . . . . . . . Robot Hacks Applied . | . . . . . . . . . . . . Relay Couplers Released 1 | . . . . . 1 . . . . . . Machine Destruction 1 | . . . . . 1 . . . . . . Fabnet Peak Effective % . | . . . . . . . . . . . . Robots Rewired 1 | . . . . . . . . . . . 1 Allies Hacked . | . . . . . . . . . . . . Hacks Repelled . | . . . . . . . . . . . . Allies | -11 -10 -10 -10 -9 -8 -7 -6 -6 -5 -4 -4 -------- Run | Scr Mat Min Exi Min Mat Fac Fac DSF Fac Fac Ext Total Allies 1 | . . . . . . . . . . . 1 Largest Group 1 | . . . . . . . . . . . 1 Highest-Rated Group 46 | . . . . . . . . . . . 46 Highest-Rated Ally 46 | . . . . . . . . . . . 46 Total Orders . | . . . . . . . . . . . . Ally Attacks 1 | . . . . . . . . . . . 1 Total Damage 40 | . . . . . . . . . . . 40 Kills . | . . . . . . . . . . . . Allies Corrupted . | . . . . . . . . . . . . Allies Melted . | . . . . . . . . . . . . Intel | -11 -10 -10 -10 -9 -8 -7 -6 -6 -5 -4 -4 ------- Run | Scr Mat Min Exi Min Mat Fac Fac DSF Fac Fac Ext Robot Analysis Total . | . . . . . . . . . . . . Derelict Logs Recovered . | . . . . . . . . . . . . Drone Launches . | . . . . . . . . . . . . Drone Recoveries . | . . . . . . . . . . . . Exploration | -11 -10 -10 -10 -9 -8 -7 -6 -6 -5 -4 -4 ------------- Run | Scr Mat Min Exi Min Mat Fac Fac DSF Fac Fac Ext Turns Passed 3194 | . 70 102 269 19 1025 838 177 155 332 169 38 Spaces Moved 2337 | 1 58 86 253 21 767 575 127 99 159 135 56 Core 91 | . . . . . . . . 4 2 29 56 Treads 95 | . . . . . . . . . 95 . . Legs 1828 | 1 58 86 253 21 767 547 . . 62 33 . Wheels 262 | . . . . . . 28 127 95 . 12 . Hover 14 | . . . . . . . . . . 14 . Flight 47 | . . . . . . . . . . 47 . Fastest Speed 32 | 120 120 120 90 90 45 90 105 90 160 32 50 Average Speed 101 | 120 120 120 103 90 82 103 105 106 174 98 50 Slowest Speed 700 | 120 120 120 120 90 125 135 105 200 350 700 50 Overloaded Moves 129 | . . . . . 129 . . . . . . Propulsion Burnouts . | . . . . . . . . . . . . Robots Hopped 4 | . . . . . . . . . . 4 . Cave-ins Triggered . | . . . . . . . . . . . . Exploration Rate (%) 26 | 2 11 38 61 8 78 15 4 79 6 6 12 Regions Visited 11 Branch Regions 4 Pre-discovered Areas . | . . . . . . . . . . . . Known Exits Taken 3 | . . . . . 1 . 1 . . 1 . Unknown Exits Taken 7 | 1 1 1 1 1 . 1 . . 1 . . Scrap Searched 1 | . . . . 1 . . . . . . . Spaces Dug 26 | . . . . . 1 25 . . . . . Terrain Destroyed 86 | . . . . . 7 30 . 49 . . . Melee . | . . . . . . . . . . . . Projectile 12 | . . . . . 7 5 . . . . . AOE 74 | . . . . . . 25 . 49 . . . Terrain Rammed . | . . . . . . . . . . . . Walls Destroyed . | . . . . . . . . . . . . Machines Disabled . | . . . . . . . . . . . . Actions | -11 -10 -10 -10 -9 -8 -7 -6 -6 -5 -4 -4 --------- Run | Scr Mat Min Exi Min Mat Fac Fac DSF Fac Fac Ext Total 2909 | . 58 85 259 20 1013 752 170 138 193 155 66 Wait 181 | . . . . . 77 68 32 2 . 2 . Move 2319 | . 57 85 252 20 766 574 126 98 158 127 56 Hop 3 | . . . . . . . . . . 3 . Pick Up 39 | . 1 . 1 . 19 12 2 . 4 . . Fast Attach 49 | . . . 2 . 14 21 . 1 2 9 . Attach 23 | . . . . . 8 2 2 1 5 5 . Detach . | . . . . . . . . . . . . Swap 19 | . . . 2 . 8 8 . . . 1 . Drop 34 | . . . 2 . 8 19 . 1 . 4 . Fire 107 | . . . . . 41 48 . 4 10 4 . Melee 39 | . . . . . 39 . . . . . . Ram 1 | . . . . . . . . . 1 . . Kick 33 | . . . . . 33 . . . . . . Crush 13 | . . . . . . . . . 13 . . Escape Stasis 38 | . . . . . . . 8 30 . . . Rewire 11 | . . . . . . . . 1 . . 10 Trap . | . . . . . . . . . . . . Miscellaneous . | . . . . . . . . . . . . Route ------- -11/Scrapyard -10/Materials -10/Mines (discovered 2 exits: [*Mat] / *Exi) -10/Exiles -9/Mines -8/Materials (discovered 3 exits: *Fac x3) -7/Factory -6/Factory -6/DSF -5/Factory -4/Factory -4/Extension History --------- Turn | Location | Event 1 | -11/Scrapyard | Discovered new exit (range 0) 1 | -11/Scrapyard | Entered Materials 53 | -10/Materials | Discovered new exit (range 16) 71 | -10/Materials | Entered Mines 98 | -10/Mines | Discovered new exit (range 15) 169 | -10/Mines | Deemed a non-threat by the Exiles lab entrance 169 | -10/Mines | Discovered new exit (range 5) 173 | -10/Mines | Entered Exiles 203 | -10/Exiles | Met 8R-AWN 223 | -10/Exiles | Met EX-HEX 255 | -10/Exiles | Met EX-BIN 272 | -10/Exiles | Aligned with FarCom system 273 | -10/Exiles | Given EX-Vault access code 301 | -10/Exiles | Opened EX-Vault 305 | -10/Exiles | Build established: Mutant 309 | -10/Exiles | Found Potential Leg 312 | -10/Exiles | Found Potential Leg 331 | -10/Exiles | Warned to stay clear of 0b10 Research branches 357 | -10/Exiles | Met EX-DEC 432 | -10/Exiles | Discovered new exit (range 14) 442 | -10/Exiles | Left Exiles lab with Potential Leg 442 | -10/Exiles | Entered Mines 453 | -9/Mines | Discovered new exit (range 8) 461 | -9/Mines | Entered Materials 461 | -8/Materials | Evolved 4 slots: Utility x4 680 | -8/Materials | Discovered new exit (range 20) 787 | -8/Materials | Build established: Skirmisher 1136 | -8/Materials | Lost 3 parts (1p2u) 1159 | -8/Materials | Core integrity fell below 50% 1261 | -8/Materials | Destroyed 8 combat bots 1262 | -8/Materials | Lost 5 parts (1p2u2w) 1432 | -8/Materials | Identified exit to Factory 1470 | -8/Materials | Core integrity fell below 20% 1477 | -8/Materials | Build established: Mutant 1486 | -8/Materials | Entered Factory 1486 | -7/Factory | Evolved 2 slots: Propulsion x2 1504 | -7/Factory | Lost 5 parts (1p1n1u2w) 1848 | -7/Factory | Garrison activated, responded to threat 2013 | -7/Factory | Build established: Scavenger-Mutant 2308 | -7/Factory | Discovered new exit (range 17) 2324 | -7/Factory | Entered another Factory area 2324 | -6/Factory | Evolved 2 slots: Weapon x2 2500 | -6/Factory | Identified exit to DSF 2501 | -6/Factory | Entered DSF 2528 | -6/DSF | Additional patrols routed to DSF 2583 | -6/DSF | Lost 3 parts (1u2w) 2625 | -6/DSF | Discovered new exit (range 16) 2656 | -6/DSF | Entered Factory 2656 | -5/Factory | Evolved 2 slots: Utility x2 2683 | -5/Factory | Lost 8 parts (1p2n2u3w) 2930 | -5/Factory | Build established: Mutant 2970 | -5/Factory | Discovered new exit (range 5) 2988 | -5/Factory | Entered another Factory area 2988 | -4/Factory | Evolved 2 slots: Propulsion x2 3122 | -4/Factory | Discovered new exit (range 13) 3149 | -4/Factory | Core integrity fell below 50% 3156 | -4/Factory | Identified exit to Extension 3157 | -4/Factory | Entered Extension 3186 | -4/Extension | Lost 15 parts (1p8n4u2w) 3191 | -4/Extension | Core integrity fell below 20% 3195 | -4/Extension | Destroyed by Y-64 Sentinel with KE Penetrator Last Messages --------------- 03155_ Penetrated by Slug. 03156_ EXIT=IDENTIFIED: EXTENSION LOCATION=EXTENSION GOAL=ESCAPE 03157_ Receiving FarCom transmissions... 03169_ W-44 Eye sends out distress signal. 03173_ Penetrated by Slug. 03185_ Attempting to rewire WO-K2Z(g). 03187_ Penetrated by Slug. 03187_ Attempting to rewire WO-K2Z(g). 03187_ WO-K2Z(g) rewired. 03188_ Attempting to rewire 43-3LE(h). 03190_ Penetrated by Slug. 03190_ Slug penetrates WO-K2Z(g). 03190_ WO-K2Z(g) suffers critical hit (Destroy). 03190_ WO-K2Z(g) destroyed. 03191_ Attempting to rewire 43-3LE(h). 03192_ Penetrated by Slug. 03193_ Attempting to rewire 43-3LE(h). 03195_ Penetrated by Slug. Map ----- +----------------------------------------------------+ | | | | | | | | | | | | | | | | | | | | | | | | | | | | | | | | | ????????????????????????????????????????????? | | ????????????????????????????????????????????? | | ????????????????????????????????????????????? | | ?????#########??????????????????????????????? | | ?????# #??########????????????????????? | | ?????# #??# #????????????????????? | | ?????# #### #????????????????????? | | ?????# /Y=bl +????????????????????? | | ?????# ########?#Y![h/ #????????????????????? | | ?????# #????????#[ !@ #???? ??????????????? | | ?????# #????????# #??"" ????????????? | | ?????# #############+### "" #???????????? | | ?????# "" #???????????? | | ?????# "" !!#???????????? | | ?????# " ! #???????????? | | ?????# w #???????????? | | ?????# ??????????? | | ?????# ########################### ?????????? | | ?????# #????????????????????????????????????? | | ?????# #????????????????????????????????????? | | ?????# #????????????????????????????????????? | | ?????# #????????????????????????????????????? | | ?????# #????????????????????????????????????? | | ?????# #????????????????????????????????????? | | ?????# #????????????????????????????????????? | | ?????# #????????????????????????????????????? | | ?????# #????????????????????????????????????? | | ?????# #????????????????????????????????????? | | ?????# #????????????????????????????????????? | | ?????# #????????????????????????????????????? | | ?????# #????????????????????????????????????? | | ?????# #????????????????????????????????????? | | ?????# #????????????????????????????????????? | | ?????# #????????????????????????????????????? | +----------------------------------------------------+ Best States ------------- Heat Dissipation 62 Energy Generation 18 Energy Capacity 410 Matter Stores 400 Matter Capacity 400 Sight Range 20 Robot Scan Range 15 Terrain Scan Density 110 Armor Coverage 150 Weapon Cycling 15 Evasion (%) 66 Core Analysis 6 Recoil Reduction 6 Item Schematics ----------------- None Robot Schematics ------------------ None Fabricated ------------ Nothing Alien Tech Used ----------------- None Achievements -------------- None Challenges ------------ None Game ------ Seed clarity Manual? 1 Play Time 00:43:29 Cumulative 99.2 hours Start 2022.04.27 @ 17:39:03 End 2022.04.27 @ 18:22:50 Sessions 1 Manual Loads 0 Difficulty Rogue Special Mode None Game No. 126 Rogue 126 Adventurer 0 Explorer 0 Win Type - Total 0 Types 0/0/0/0/0/0/0/0/0 Lore% 54 Gallery% 50 Achievement% 43 Wizard Run 0 Options --------- ASCII 1 Keyboard 0 Movement Vi Keybinds 0 Fullscreen 1 Font 18/SmallcapsGlow Map View 76x50 Tactical HUD 1 Map Filters NONE Filters NONE Steam 1 RUN: 917ec8e1-305f-41e7-a011-214bace98623